Cogmind - Beta 11.2 @@@ ROGUE MODE // 2022.12.24 @ 02:03:30 // Winter2022/Polymind Player: Runia Result: Destroyed by Enhanced Grunt with Neutron Cannon Performance ------------- Evolutions (3) 1500 Regions Visited (11) 2200 Robots Destroyed (86) 430 Value Destroyed (2090) 2090 Prototype IDs (13) 260 Alien Tech Used (0) 0 Bonus (7691) 7691 TOTAL SCORE: 13411 Bonus ------- Polymind Skill 7354 High Alert Combat Kills 35 Follower Combat Kills 150 Met Data Miner 300 Friendly Fire -148 Cogmind --------- Core Integrity 0/700 Matter 0/0 Energy 91/100 System Corruption 10% Temperature Cool (0) Movement Core (50) Location -7/Data Miner Parts ------- > --- POWER (1) -------- (None) > --- PROPULSION (2) --- (None) > --- UTILITY (3) ------ (None) > --- WEAPON (2) ------- (None) > --- INVENTORY (0) ---- (None) Peak State ------------ > --- POWER ------------ Heavy Deuterium Engine > --- PROPULSION ------- Combat Antigrav System > --- UTILITY ---------- Advanced Launcher Guidance Computer Improved Target Analyzer Experimental Core Analyzer Improved Armor Integrity Analyzer EX Chip 1 EX Chip 1 EX Chip 1 EX Chip 1 EX Chip 1 EX Chip 1 EX Chip 1 EX Chip 1 EX Chip 1 EX Chip 1 EX Chip 2 EX Chip 2 EX Chip 2 EX Chip 2 EX Chip 2 EX Chip 2 EX Chip 2 EX Chip 2 > --- WEAPON ----------- AWS/EX-DEC > --- INVENTORY -------- Deploy-a-Sentry [Rating: 99] Favorites ----------- Power Improved Ion Engine Engine Improved Ion Engine Power Core Light Nuclear Core Propulsion Light Treads Treads Light Treads Leg Carbon-fiber Leg Hover Unit Combat Antigrav System Flight Unit Flight Unit Utility EX Chip 1 Device Heat Sink Processor Advanced Launcher Guidance Computer Hackware EX Chip 1 Protection Light Armor Plating Weapon Beam Rifle Energy Gun Beam Rifle Ballistic Gun Heavy Assault Rifle Ballistic Cannon Battle Cannon Slashing Weapon Axe Build | -11 -10 -10 -9 -9 -9 -8 -8 -7 -7 -7 -7 ------- Run | Scr Mat Min Mat Min Exi Min Mat Fac Low Low Dat Slots Evolved . | . . . . . . . . . . . . Power . | . . . . . . . . . . . . Propulsion . | . . . . . . . . . . . . Utility . | . . . . . . . . . . . . Weapon . | . . . . . . . . . . . . Parts Attached . | . . . . . . . . . . . . Power . | . . . . . . . . . . . . Engine . | . . . . . . . . . . . . Core . | . . . . . . . . . . . . Reactor . | . . . . . . . . . . . . Propulsion . | . . . . . . . . . . . . Treads . | . . . . . . . . . . . . Leg . | . . . . . . . . . . . . Wheel . | . . . . . . . . . . . . Hover . | . . . . . . . . . . . . Flight . | . . . . . . . . . . . . Utility . | . . . . . . . . . . . . Device . | . . . . . . . . . . . . Storage . | . . . . . . . . . . . . Processor . | . . . . . . . . . . . . Hackware . | . . . . . . . . . . . . Protection . | . . . . . . . . . . . . Artifact . | . . . . . . . . . . . . Weapon . | . . . . . . . . . . . . Energy Gun . | . . . . . . . . . . . . Energy Cannon . | . . . . . . . . . . . . Ballistic Gun . | . . . . . . . . . . . . Ballistic Cannon . | . . . . . . . . . . . . Launcher . | . . . . . . . . . . . . Special Weapon . | . . . . . . . . . . . . Impact Weapon . | . . . . . . . . . . . . Slashing Weapon . | . . . . . . . . . . . . Piercing Weapon . | . . . . . . . . . . . . Special Melee Weapon . | . . . . . . . . . . . . Unidentified Prototypes . | . . . . . . . . . . . . Parts Lost 16 | . . . 6 3 . 2 1 2 2 . . Power 2 | . . . 1 . . . . . 1 . . Propulsion 5 | . . . 2 2 . . . . 1 . . Utility 6 | . . . 2 . . 2 1 1 . . . Weapon 3 | . . . 1 1 . . . 1 . . . Highest Loss Streak 3 | . . . 3 3 . 1 1 2 2 . . To Critical Strikes . | . . . . . . . . . . . . Average Slot Usage (%) 91 | . . 85 95 79 99 92 86 88 95 100 85 Engine 10 | . . 15 11 13 13 3 3 7 11 9 10 Treads 15 | . . . 22 4 . . . 13 23 20 21 Leg 4 | . . 21 2 15 26 . . . . . . Flight 1 | . . 10 . . . . . . . 8 . Device 20 | . . 21 24 28 26 . . 13 23 20 21 Processor 2 | . . . . . 3 15 15 6 . 9 10 Hackware 10 | . . . . . 14 65 59 24 . . . Protection 5 | . . . 8 . . . . 6 11 . . Energy Gun 10 | . . 10 12 13 13 3 3 7 11 . . Ballistic Gun 7 | . . 5 11 1 . . . 6 11 14 10 Naked Turns 207 | . 53 68 6 2 2 . . 20 35 1 20 Heaviest Build 23 | . . 16 18 16 21 21 21 23 23 18 18 Greatest Support 43 | 3 3 30 40 40 30 16 16 40 40 43 43 Greatest Overweight (x) 3 | . . . 1 3 1 1 1 1 . . . Average Overweight (x) . | . . . . . . 1 1 . . . . Largest Inventory Capacity 1 | . . 1 1 1 1 1 1 1 1 1 1 Average Capacity . | . . . . . . 1 1 . . . . Most Carried 1 | . . . . . 1 1 1 1 . . . Average Carried . | . . . . . . 1 1 . . . . Final Capacity 1 | . . 1 1 1 1 1 1 1 . 1 . Final Carried 1 | . . . . . 1 1 1 . . . . Class Distribution -------------------- 59% | Sentry 16% | Tinkerer 14% | Grunt 4% | Mutant Dominant Class ---------------- Cogmind | -10/Materials Grunt | -10/Mines Sentry | -9/Materials Sentry | -9/Mines Grunt | -9/Exiles Tinkerer | -8/Mines Tinkerer | -8/Materials Sentry | -7/Factory Sentry | -7/Lower Caves Mutant | -7/Lower Caves Mutant | -7/Data Miner Resources | -11 -10 -10 -9 -9 -9 -8 -8 -7 -7 -7 -7 ----------- Run | Scr Mat Min Mat Min Exi Min Mat Fac Low Low Dat Matter Collected 287 | . . . 79 48 . . . 55 60 45 . Remotely . | . . . . . . . . . . . . Salvage Created 2333 | . . 16 735 296 . 181 904 142 30 29 . Parts 173 | . . 3 72 29 . 12 51 5 . 1 . Haulers Intercepted . | . . . . . . . . . . . . Recyclers Shooed . | . . . . . . . . . . . . Parts Field Recycled . | . . . . . . . . . . . . Retrieved Matter . | . . . . . . . . . . . . Parts Self-Destructed 1 | . . . . . . . . . . 1 . Prevented . | . . . . . . . . . . . . Kills | -11 -10 -10 -9 -9 -9 -8 -8 -7 -7 -7 -7 ------- Run | Scr Mat Min Mat Min Exi Min Mat Fac Low Low Dat Combat Hostiles Destroyed 72 | . . 6 27 10 . 8 17 3 . 1 . Guns 67 | . . 6 23 10 . 7 17 3 . 1 . AOE 3 | . . . 3 . . . . . . . . Classes Destroyed 13 | . . 3 6 1 . 1 2 . . . . Worker 1 | . . . . 1 . . . . . . . Builder 1 | . . . . . . . 1 . . . . Tunneler 1 | . . . . . . . 1 . . . . Recycler 3 | . . . 1 2 . . . . . . . Operator 3 | . . . 1 . . . 2 . . . . Watcher 6 | . . . 3 . . . 3 . . . . Swarmer 38 | . . 2 12 8 . 7 6 2 . 1 . Grunt 15 | . . 2 7 2 . . 4 . . . . Brawler 1 | . . . 1 . . . . . . . . Duelist 2 | . . . 1 . . . 1 . . . . Sentry 11 | . . . 6 . . . 4 1 . . . Hunter 3 | . . . . . . 1 2 . . . . Decomposer 3 | . . . . . . . . . 2 1 . Assembled 2 | . . 2 . . . . . . . . . Thug 1 | . . . . 1 . . . . . . . Best Kill Streak 8 | . . 2 6 8 . 4 8 2 . 1 . Combat Bots Only 6 | . . 2 5 6 . 4 5 2 . 1 . Max Kills in Single Turn 3 | . . 1 3 1 . 1 2 1 1 1 . Gunslinging . | . . . . . . . . . . . . Exploded 3 | . . . 3 . . . . . . . . Melee . | . . . . . . . . . . . . Uniques/NPCs Destroyed . | . . . . . . . . . . . . Combat | -11 -10 -10 -9 -9 -9 -8 -8 -7 -7 -7 -7 -------- Run | Scr Mat Min Mat Min Exi Min Mat Fac Low Low Dat Damage Taken 4066 | . . 293 1245 377 . 105 254 751 706 14 321 Core 1250 | . . 113 255 55 . 57 56 149 325 14 226 Absorbed by Shields . | . . . . . . . . . . . . Redirected to Shielding 26 | . . . . . . . . . 26 . . Core Remaining (%) 62 | 100 . 54 . . . 8 89 . . . . Volleys Fired 145 | . . 25 67 32 . . . 7 2 12 . Largest 2 | . . 1 2 2 . . . 2 2 2 . Hottest 108 | . . 75 79 79 . . . 108 108 67 . Shots Fired 306 | . . 25 110 47 . 19 61 21 6 16 1 Gun 301 | . . 25 110 47 . 19 61 21 6 12 . Cannon 5 | . . . . . . . . . . 4 1 Launcher . | . . . . . . . . . . . . Special . | . . . . . . . . . . . . Kinetic 92 | . . 6 43 15 . . . 7 4 16 1 Thermal 127 | . . 19 67 32 . . . 7 2 . . Explosive . | . . . . . . . . . . . . Electromagnetic 87 | . . . . . . 19 61 7 . . . Robot Hit Streak 16 | . . 4 13 4 . 10 16 5 7 6 . Robot Miss Streak 7 | . . 4 5 7 . 4 5 3 4 2 1 Penetration Max . | . . . . . . . . . . . . Secondary Targets 1 | . . . 1 . . . . . . . . Max Gunslinging Chain 1 | . . . 1 . . . . . . . . Autonomous 87 | . . . . . . 19 61 7 . . . Shots Hit Robots 210 | . . 13 73 22 . 15 52 21 4 10 . Core Hits 135 | . . 8 41 17 . 8 36 18 3 4 . Critical Kills . | . . . . . . . . . . . . Critical Parts Destroyed . | . . . . . . . . . . . . Critical Strikes 24 | . . . 6 2 . 4 10 1 . 1 . Burn 8 | . . . 6 2 . . . . . . . Blast 1 | . . . . . . . . . . 1 . Corrupt 15 | . . . . . . 4 10 1 . . . Melee Attacks 1 | . . . . . . . . . 1 . . Impact . | . . . . . . . . . . . . Slashing 1 | . . . . . . . . . 1 . . Piercing . | . . . . . . . . . . . . Sneak Attacks . | . . . . . . . . . . . . Combat Hostiles . | . . . . . . . . . . . . Follow-up Attacks . | . . . . . . . . . . . . Damage Inflicted 4682 | . . 230 1644 368 . 399 1417 415 39 170 . Guns 4283 | . . 229 1275 368 . 399 1417 415 39 141 . Cannons 29 | . . . . . . . . . . 29 . Explosions 369 | . . . 369 . . . . . . . . Melee . | . . . . . . . . . . . . Ramming 1 | . . 1 . . . . . . . . . Kinetic 836 | . . 40 381 87 . . . 140 18 170 . Thermal 1523 | . . 189 894 281 . . . 138 21 . . Explosive 369 | . . . 369 . . . . . . . . Electromagnetic 1953 | . . . . . . 399 1417 137 . . . Impact . | . . . . . . . . . . . . Slashing . | . . . . . . . . . . . . Piercing . | . . . . . . . . . . . . Highest Corruption 10 | . . . . . . . . 9 10 10 10 Average Corruption 8 | . . . . . . . . 4 9 10 10 Corruption Purged . | . . . . . . . . . . . . Corruption Blocked . | . . . . . . . . . . . . Effects 40 | . . . . . . . . 2 21 11 6 Message Errors 12 | . . . . . . . . . 6 4 2 Matter Fused 9 | . . . . . . . . 1 4 3 1 Heat Flow Errors 3 | . . . . . . . . 1 1 . 1 Energy Discharges 6 | . . . . . . . . . 3 3 . Data Loss (minor) 2 | . . . . . . . . . 2 . . Data Loss (major) 4 | . . . . . . . . . 2 1 1 Misfires 3 | . . . . . . . . . 2 . 1 Alerts 1 | . . . . . . . . . 1 . . Overload Shots . | . . . . . . . . . . . . Overflow Damage 22 | . . . 15 . . . . . . 7 . Projectiles 7 | . . . . . . . . . . 7 . Explosions 15 | . . . 15 . . . . . . . . Melee . | . . . . . . . . . . . . Knockbacks 1 | . . . . . . . . . . 1 . Impact . | . . . . . . . . . . . . Kinetic 1 | . . . . . . . . . . 1 . Secondary . | . . . . . . . . . . . . Self-Inflicted Damage 49 | . . . 49 . . . . . . . . Shots 1 | . . . 1 . . . . . . . . Rammed . | . . . . . . . . . . . . Targets Rammed 1 | . . 1 . . . . . . . . . Kicked 1 | . . 1 . . . . . . . . . Crushed . | . . . . . . . . . . . . Highest Temperature 213 | . . 25 38 9 . . 20 213 102 20 182 Average Temperature 19 | . . 10 15 4 . . 8 37 23 10 104 Received Heat Transfer 699 | . . 33 189 60 . . 99 141 177 . . Siege Activations . | . . . . . . . . . . . . Robots Corrupted 1 | . . . . . . 1 . . . . . Combat Hostiles 1 | . . . . . . 1 . . . . . Parts Fried 25 | . . . . . . 4 21 . . . . Impact Corruptions . | . . . . . . . . . . . . Robots Melted 1 | . . . 1 . . . . . . . . Combat Hostiles 1 | . . . 1 . . . . . . . . Parts Melted 5 | . . 1 4 . . . . . . . . Heat Transferred 3766 | . . 333 2331 777 . . . 275 50 . . Parts Sabotaged . | . . . . . . . . . . . . Parts Stolen . | . . . . . . . . . . . . Parts Stripped . | . . . . . . . . . . . . Power Chain Reactions . | . . . . . . . . . . . . Missiles Intercepted . | . . . . . . . . . . . . Alert | -11 -10 -10 -9 -9 -9 -8 -8 -7 -7 -7 -7 ------- Run | Scr Mat Min Mat Min Exi Min Mat Fac Low Low Dat Peak Influence 490 | . . 122 490 373 . 105 446 257 . . . Initial 156 | . . . . 103 . . 35 156 . . . Average 204 | . . 37 236 245 . 57 285 121 . . . Maximum Alert Level 2 | . . . 2 1 . . 2 1 . . . Low Security (%) 54 | . 100 100 42 57 . 100 18 85 . . . Level 1 38 | . . . 48 42 . . 56 14 . . . Level 2 7 | . . . 8 . . . 25 . . . . Level 3 . | . . . . . . . . . . . . Level 4 . | . . . . . . . . . . . . Level 5 . | . . . . . . . . . . . . High Security . | . . . . . . . . . . . . Max Security . | . . . . . . . . . . . . Squads Dispatched 7 | . . 1 1 . . . 1 4 . . . Investigation 4 | . . 1 1 . . . 1 1 . . . Extermination 1 | . . . . . . . . 1 . . . Reinforcement 1 | . . . . . . . . 1 . . . Assault . | . . . . . . . . . . . . Garrison 1 | . . . . . . . . 1 . . . Intercept . | . . . . . . . . . . . . Searches Triggered . | . . . . . . . . . . . . Construction Impeded . | . . . . . . . . . . . . Haulers Reinforced . | . . . . . . . . . . . . Active Scanning Responses . | . . . . . . . . . . . . Cargo Convoy Interrupts . | . . . . . . . . . . . . Stealth | -11 -10 -10 -9 -9 -9 -8 -8 -7 -7 -7 -7 --------- Run | Scr Mat Min Mat Min Exi Min Mat Fac Low Low Dat Distress Signals 4 | . . . 2 . . . 2 . . . . Communications Jammed . | . . . . . . . . . . . . Distress Signals . | . . . . . . . . . . . . Times Spotted 138 | . . 15 39 11 . 8 20 12 26 2 5 Peak Tracking Total 15 | . . 4 11 4 . 3 6 5 15 1 4 Tactical Retreats 6 | . . 3 1 . . . 1 1 . . . Traps | -11 -10 -10 -9 -9 -9 -8 -8 -7 -7 -7 -7 ------- Run | Scr Mat Min Mat Min Exi Min Mat Fac Low Low Dat Traps Triggered 6 | . . . 1 . . . 1 4 . . . Indirectly . | . . . . . . . . . . . . Trap Hack Attempts . | . . . . . . . . . . . . Triggered . | . . . . . . . . . . . . Disarmed . | . . . . . . . . . . . . Reprogrammed . | . . . . . . . . . . . . Reused . | . . . . . . . . . . . . Traps Extracted . | . . . . . . . . . . . . Installed . | . . . . . . . . . . . . Triggered 1 | . . . . . . . . . 1 . . Machines | -11 -10 -10 -9 -9 -9 -8 -8 -7 -7 -7 -7 ---------- Run | Scr Mat Min Mat Min Exi Min Mat Fac Low Low Dat Machines Disabled 7 | . . . 2 4 . . 1 . . . . Max in Single Turn 2 | . . . 2 1 . . 1 . . . . Garrison Access 1 | . . . . . . . . 1 . . . Machines Sabotaged . | . . . . . . . . . . . . Garrisons Compromised . | . . . . . . . . . . . . Overloaded Fab Kills . | . . . . . . . . . . . . Hacking | -11 -10 -10 -9 -9 -9 -8 -8 -7 -7 -7 -7 --------- Run | Scr Mat Min Mat Min Exi Min Mat Fac Low Low Dat Machines Accessed 16 | . . 1 3 1 1 1 4 2 . . 3 Terminals 9 | . . . 3 1 . 1 3 1 . . . Fabricators . | . . . . . . . . . . . . Repair Stations 1 | . . . . . . . 1 . . . . Recycling Units . | . . . . . . . . . . . . Scanalyzers . | . . . . . . . . . . . . Garrison Access 1 | . . . . . . . . 1 . . . Total Hacks 72 | . . 1 7 2 1 1 21 17 . . 22 Successful 64 | . . 1 3 1 1 1 20 15 . . 22 Failed 8 | . . . 4 1 . . 1 2 . . . Catastrophic . | . . . . . . . . . . . . Database Lockouts . | . . . . . . . . . . . . Manual 14 | . . . 1 . . . 11 2 . . . Terminals 46 | . . . 7 2 . 1 20 16 . . . Fabricators . | . . . . . . . . . . . . Repair Stations 1 | . . . . . . . 1 . . . . Recycling Units . | . . . . . . . . . . . . Scanalyzers . | . . . . . . . . . . . . Garrison Access 1 | . . . . . . . . 1 . . . Terminal Hacks 60 | . . 1 2 1 1 1 18 14 . . 22 Record 9 | . . . 1 . 1 . . 1 . . 6 Part Schematic 9 | . . . . . . . . 2 . . 7 Robot Schematic 6 | . . . . . . . . . . . 6 Prototype ID Bank 3 | . . . . . . . . . . . 3 Open Door 1 | . . 1 . . . . . . . . . Branch Access Points 3 | . . . . . . . 2 1 . . . Emergency Access Points 1 | . . . . . . . . 1 . . . Repair Station Index 1 | . . . . . . . . 1 . . . Recycling Unit Index 1 | . . . . . . . . 1 . . . Alert Level 2 | . . . . . . . 1 1 . . . Unreport Threat 5 | . . . . . . . 2 3 . . . Locate Traps 1 | . . . . . . . 1 . . . . Dispatch Records 2 | . . . . . . 1 1 . . . . Maintenance Status 1 | . . . . . . . 1 . . . . Security Status 1 | . . . . . . . 1 . . . . Patrol Status 4 | . . . . . . . 3 1 . . . Transport Status 1 | . . . . . . . 1 . . . . Recall Investigation 1 | . . . . . . . 1 . . . . Recall Reinforcements 1 | . . . . . . . 1 . . . . Hauler Manifests 1 | . . . . . . . 1 . . . . Registered Prototypes 1 | . . . . . . . . 1 . . . Zone Layout 5 | . . . 1 1 . . 2 1 . . . Fabricator Hacks . | . . . . . . . . . . . . Repair Station Hacks 1 | . . . . . . . 1 . . . . Scan Component 1 | . . . . . . . 1 . . . . Recycling Unit Hacks . | . . . . . . . . . . . . Scanalyzer . | . . . . . . . . . . . . Garrison Access Hacks 1 | . . . . . . . . 1 . . . Seal Access 1 | . . . . . . . . 1 . . . Unauthorized Hacks 2 | . . . 1 . . . 1 . . . . Terminals 2 | . . . 1 . . . 1 . . . . Track 1 | . . . . . . . 1 . . . . Assimilate 1 | . . . 1 . . . . . . . . Fabricators . | . . . . . . . . . . . . Repair Stations . | . . . . . . . . . . . . Recycling Units . | . . . . . . . . . . . . Scanalyzers . | . . . . . . . . . . . . Garrison Access . | . . . . . . . . . . . . Data Cores Recovered 3 | . . . 1 . . . 2 . . . . Used 2 | . . . . . . . 2 . . . . Hacking Detections 3 | . . . 2 1 . . . . . . . Full Trace Events . | . . . . . . . . . . . . Feedback Events . | . . . . . . . . . . . . Feedback Blocked . | . . . . . . . . . . . . Robot Schematics Acquired 6 | . . . . . . . . . . . 6 Robots Built . | . . . . . . . . . . . . Authchips . | . . . . . . . . . . . . Time . | . . . . . . . . . . . . Total Robot Build Rating . | . . . . . . . . . . . . Part Schematics Acquired 9 | . . . . . . . . 2 . . 7 Parts Built . | . . . . . . . . . . . . Authchips . | . . . . . . . . . . . . Time . | . . . . . . . . . . . . Total Part Build Rating . | . . . . . . . . . . . . Parts Repaired . | . . . . . . . . . . . . Time . | . . . . . . . . . . . . Parts Recycled . | . . . . . . . . . . . . Recycled Matter . | . . . . . . . . . . . . Retrieved Matter . | . . . . . . . . . . . . Retrieved Components . | . . . . . . . . . . . . Parts Scanalyzed . | . . . . . . . . . . . . Part Schematics Acquired . | . . . . . . . . . . . . Parts Damaged . | . . . . . . . . . . . . Bothacking | -11 -10 -10 -9 -9 -9 -8 -8 -7 -7 -7 -7 ------------ Run | Scr Mat Min Mat Min Exi Min Mat Fac Low Low Dat Used RIF Installer . | . . . . . . . . . . . . Robots Hacked 7 | . . 1 3 . . . . 1 2 . . Non-combat . | . . . . . . . . . . . . Combat 7 | . . 1 3 . . . . 1 2 . . Robot Hacks Applied 8 | . . 1 3 . . . . 2 2 . . find_shortcuts 7 | . . 1 3 . . . . 1 2 . . find_garrison 1 | . . . . . . . . 1 . . . Relay Couplers Released . | . . . . . . . . . . . . Fabnet Peak Effective % . | . . . . . . . . . . . . Robots Rewired . | . . . . . . . . . . . . Allies Hacked . | . . . . . . . . . . . . Hacks Repelled . | . . . . . . . . . . . . Allies | -11 -10 -10 -9 -9 -9 -8 -8 -7 -7 -7 -7 -------- Run | Scr Mat Min Mat Min Exi Min Mat Fac Low Low Dat Total Allies 2 | . . . 1 1 . . . . . . . Largest Group 1 | . . . 1 1 . . . . . . . Highest-Rated Group 31 | . . . 10 31 . . . . . . . Highest-Rated Ally 31 | . . . 10 31 . . . . . . . Total Orders . | . . . . . . . . . . . . Ally Attacks 8 | . . . . . . . . 8 . . . Total Damage 357 | . . . . . . . . 357 . . . Kills 4 | . . . . . . . . 4 . . . Allies Corrupted . | . . . . . . . . . . . . Allies Melted . | . . . . . . . . . . . . Turrets Deployed 1 | . . . . . . . . 1 . . . Intel | -11 -10 -10 -9 -9 -9 -8 -8 -7 -7 -7 -7 ------- Run | Scr Mat Min Mat Min Exi Min Mat Fac Low Low Dat Robot Analysis Total 7 | . . 2 1 . . . . 1 2 1 . Derelict Logs Recovered 6 | . . 2 . 2 . . . . 1 1 . Drone Launches . | . . . . . . . . . . . . Drone Recoveries . | . . . . . . . . . . . . Exploration | -11 -10 -10 -9 -9 -9 -8 -8 -7 -7 -7 -7 ------------- Run | Scr Mat Min Mat Min Exi Min Mat Fac Low Low Dat Turns Passed 8450 | . 53 475 4034 820 327 536 587 443 747 289 139 Spaces Moved 3751 | 1 105 588 504 507 264 355 376 220 497 243 91 Core 459 | 1 105 123 9 146 4 . . 6 45 1 19 Treads 1003 | . . . 224 51 . . . 83 432 141 72 Legs 960 | . . 212 215 310 216 . . . 7 . . Wheels . | . . . . . . . . . . . . Hover 906 | . . . . . 44 355 376 131 . . . Flight 423 | . . 253 56 . . . . . 13 101 . Fastest Speed 32 | 50 50 37 37 50 50 150 150 50 32 32 50 Average Speed 125 | 50 50 69 127 145 123 150 150 148 146 109 140 Slowest Speed 200 | 50 50 120 160 200 150 150 150 160 160 165 165 Overloaded Moves . | . . . . . . . . . . . . Propulsion Burnouts . | . . . . . . . . . . . . Robots Hopped 3 | . . . 1 . . . . 2 . . . Cave-ins Triggered . | . . . . . . . . . . . . Exploration Rate (%) 54 | 2 18 82 59 96 76 69 47 7 66 50 76 Regions Visited 11 Branch Regions 7 Pre-discovered Areas 7 | . . 2 . 2 1 . . . . 1 1 Known Exits Taken 1 | . . . . . . . . 1 . . . Unknown Exits Taken 10 | 1 1 1 1 1 1 1 1 . 1 1 . Scrap Searched 4 | . . 1 . 1 . 1 . . . 1 . Spaces Dug . | . . . . . . . . . . . . Terrain Destroyed 30 | . . . 30 . . . . . . . . Melee . | . . . . . . . . . . . . Projectile . | . . . . . . . . . . . . AOE 30 | . . . 30 . . . . . . . . Terrain Rammed . | . . . . . . . . . . . . Walls Destroyed . | . . . . . . . . . . . . Machines Disabled . | . . . . . . . . . . . . Actions | -11 -10 -10 -9 -9 -9 -8 -8 -7 -7 -7 -7 --------- Run | Scr Mat Min Mat Min Exi Min Mat Fac Low Low Dat Total 7268 | . 104 629 3785 540 264 359 399 321 511 254 102 Wait 3380 | . . 16 3216 2 . 5 24 94 12 . 11 Move 3734 | . 104 587 501 506 263 354 375 215 496 242 91 Hop 3 | . . . 1 . . . . 2 . . . Pick Up 2 | . . . . . 1 . . 1 . . . Fast Attach . | . . . . . . . . . . . . Attach . | . . . . . . . . . . . . Detach . | . . . . . . . . . . . . Swap . | . . . . . . . . . . . . Drop 2 | . . . . . . . . 2 . . . Fire 145 | . . 25 67 32 . . . 7 2 12 . Melee 1 | . . . . . . . . . 1 . . Ram . | . . . . . . . . . . . . Kick 1 | . . 1 . . . . . . . . . Crush . | . . . . . . . . . . . . Escape Stasis . | . . . . . . . . . . . . Rewire . | . . . . . . . . . . . . Trap . | . . . . . . . . . . . . Miscellaneous . | . . . . . . . . . . . . Route ------- -11/Scrapyard -10/Materials -10/Mines (discovered 2 exits: *Mat x2) -9/Materials (discovered 3 exits: *Mat x2 / *Min) -9/Mines (discovered 3 exits: *Mat x2 / *Exi) -9/Exiles -8/Mines -8/Materials (discovered 2 exits: *Fac x2) -7/Factory (discovered 3 exits: *Sto / *Low x2) -7/Lower Caves -7/Lower Caves (discovered 2 exits: [*Fac] / *Dat) -7/Data Miner (discovered 1 exit: [*Pro]) History --------- Turn | Location | Event 1 | -11/Scrapyard | Discovered new exit (range 0) 1 | -11/Scrapyard | Entered Materials 15 | -10/Materials | Discovered new exit (range 9) 54 | -10/Materials | Entered Mines 91 | -10/Mines | Learned location of Mines (-8) 164 | -10/Mines | Assembled infested the area 224 | -10/Mines | Met a Derelict shopkeep closing up shop 381 | -10/Mines | Learned location of Zion (-6) 503 | -10/Mines | Discovered new exit (range 5) 520 | -10/Mines | Discovered new exit (range 7) 529 | -10/Mines | Entered Materials 712 | -9/Materials | Discovered new exit (range 16) 877 | -9/Materials | Lost 3 parts (2n1w) 961 | -9/Materials | Core integrity fell below 50% 1609 | -9/Materials | Discovered new exit (range 16) 4537 | -9/Materials | Discovered new exit (range 15) 4563 | -9/Materials | Entered Mines 4616 | -9/Mines | Met a Derelict bent on vengeance 4743 | -9/Mines | Lost 3 parts (2n1w) 5038 | -9/Mines | Discovered new exit (range 5) 5050 | -9/Mines | Learned location of Storage (-7) 5120 | -9/Mines | Discovered new exit (range 10) 5157 | -9/Mines | Received a Mining Laser from a helpful Derelict 5377 | -9/Mines | Deemed a non-threat by the Exiles lab entrance 5378 | -9/Mines | Discovered new exit (range 5) 5383 | -9/Mines | Entered Exiles 5414 | -9/Exiles | Met 8R-AWN 5435 | -9/Exiles | Met EX-HEX 5470 | -9/Exiles | Met EX-BIN 5486 | -9/Exiles | Met EX-DEC 5541 | -9/Exiles | Visited The Gauntlet 5646 | -9/Exiles | Took control of EX-DEC (ally) 5694 | -9/Exiles | Discovered new exit (range 12) 5710 | -9/Exiles | Left Exiles lab with Deploy-a-Sentry 5710 | -9/Exiles | Entered Mines 5798 | -8/Mines | Core integrity fell below 20% 6219 | -8/Mines | Discovered new exit (range 8) 6246 | -8/Mines | Entered Materials 6493 | -8/Materials | Discovered new exit (range 16) 6812 | -8/Materials | Discovered new exit (range 10) 6833 | -8/Materials | Entered Factory 6857 | -7/Factory | Identified exit to Storage 6857 | -7/Factory | Identified exit to Lower Caves 7028 | -7/Factory | Took control of EX-DEC (ally) 7053 | -7/Factory | Found Deploy-a-Sentry 7119 | -7/Factory | Garrison activated, responded to threat 7158 | -7/Factory | DAS Turret deployed 7276 | -7/Factory | Entered Lower Caves 7840 | -7/Lower Caves | Learned 4 Factory zone layouts 7952 | -7/Lower Caves | Attracted the attention of an 0b10 outpost 7993 | -7/Lower Caves | Core integrity fell below 50% 7996 | -7/Lower Caves | System corruption reached 10% 8020 | -7/Lower Caves | Discovered new exit (range 9) 8023 | -7/Lower Caves | Entered another Lower Caves area 8046 | -7/Lower Caves | Discovered new exit (range 12) 8067 | -7/Lower Caves | Encountered a Warlord checkpoint 8290 | -7/Lower Caves | Discovered new exit (range 14) 8312 | -7/Lower Caves | Entered Data Miner 8312 | -7/Data Miner | Discovered new exit (range 6) 8344 | -7/Data Miner | Met Data Miner 8374 | -7/Data Miner | Learned location of Section 7 (-2) 8374 | -7/Data Miner | Acquired the access code to Warlord's prototype stash 8398 | -7/Data Miner | Received God Mode back door access code from Data Miner 8432 | -7/Data Miner | Data Conduit disabled 8446 | -7/Data Miner | Core integrity fell below 20% 8451 | -7/Data Miner | Destroyed by Enhanced Grunt with Neutron Cannon Last Messages --------------- Imp. Heavy Laser Aerolev Unit >>Schematic "HERF Cannon" Downloading schematic... HERF Cannon Rating: 7 Schematic downloaded. 08385_ System corrupted: Heat flow error (+233). Data Miner: I've just received further instructions. God Mode is nearly complete and we think you might be able to put it to better use than Warlord, so if you see an opportunity, hack it and enter \\WJ4X to gain control via the back door I've installed. Now off with you. 08408_ System corrupted: Matter fused (-6). 08425_ System corrupted: FCS attempts to trigger Battle Cannon. 08425_ System corrupted: Battle Cannon misfires. 08425_ Data Miner disappears through a trap door. 08431_ Released control of FA-N58(M). 08432_ Data Conduit disabled. 08435_ FA-N58(M) destroyed. Map ----- +----------------------------------------------------+ | | | | | | | | | | | | | | | | | | | | | | | | | | | | | | | | | | | ?????????????????????????????????????????? | | ?????????????????????????????????????????? | | ?????????????????????????????????????????? | | ?????????????????????????????????????????? | | ?????????????????????????????####????????? | | #############????#########?### #????????? | | """"""""""""###### # # # ### #????????? | | """" "" """ "# # # # ## < ##????????? | | """"" =% ggg @ ######???? | | "" g #???? | | "" % #???? | | " #???? | | "" ##???? | | "" """"""""""""""""#####????? | | """ """"###############????????? | | """ """""###??????????????????????? | | """"" "#####????????????????????????? | | ####"## "#????????????????????????????? | | ???#"### "#????????????????????????????? | | ???#"### "#????????????????????????????? | | ???#"## "#????????????????????????????? | | ???#?## "#????????????????????????????? | | ?????# "#????????????????????????????? | | ?????### "#????????????????????????????? | | ???????# "##???????????????????????????? | | ??????## ""#???????????????????????????? | | ?????## ""#???????????????????????????? | | ??##"#"X ""#???????????????????????????? | | ??""""" "####????????????????????????? | | ??""""" X"""""????????????????????????? | | ??##"#"X "##"#????????????????????????? | | ???#?## X""""#????????????????????????? | | ??????## "##"#????????????????????????? | +----------------------------------------------------+ Best States ------------- Heat Dissipation 60 Energy Generation 31 Energy Capacity 240 Matter Stores 150 Matter Capacity 150 Sight Range 16 Terrain Scan Density 10 Armor Coverage 150 Resistance: EX 50 Resistance: EM 90 Resistance: I 25 Resistance: S 25 Resistance: P 25 Core Shielding 20 Weapon Cycling 15 Melee Speed Boost 20 Evasion (%) 63 Melee Accuracy 6 Launcher Accuracy 40 Target Analysis 6 Core Analysis 8 Armor Integrity Analysis 40 Recoil Reduction 2 Salvage Targeting 1 Offensive Hacking 70 Defensive Hacking 56 Item Schematics ----------------- Imp. Weapon Cycler | -7/Factory | Hacked Triangulator | -7/Factory | Hacked Lgt. Regenerative Plating | -7/Data Miner | Free Combat Drone Bay | -7/Data Miner | Free Lance | -7/Data Miner | Free Gravity Neutralizer | -7/Data Miner | Free Variable Charge Gun | -7/Data Miner | Free Shock Maul | -7/Data Miner | Free HERF Cannon | -7/Data Miner | Free Robot Schematics ------------------ G-47 Trooper | -7/Data Miner | Free E-15 Imp | -7/Data Miner | Free B-48 Gladiator | -7/Data Miner | Free Y-54 Guardian | -7/Data Miner | Free R-10 Processor | -7/Data Miner | Free S-27 Virus | -7/Data Miner | Free Fabricated ------------ Nothing Alien Tech Used ----------------- None Achievements -------------- None Challenges ------------ None Polymind | -11 -10 -10 -9 -9 -9 -8 -8 -7 -7 -7 -7 ---------- Run | Scr Mat Min Mat Min Exi Min Mat Fac Low Low Dat Robots Controlled 12 | . . 2 3 1 1 . . 2 2 1 . Combat Hostiles 7 | . . 1 3 . . . . 1 2 . . Allies 5 | . . 1 . 1 1 . . 1 . 1 . Classes Controlled 6 | . . 2 1 . 1 . . . 1 1 . Average Host Suspicion 67 | . . 94 57 90 . 85 96 86 79 58 2 Unsuspicious Activity 3537 | . . 67 3202 27 16 . . 105 20 100 . Returns to Shadow 4 | . . . 4 . . . . . . . . Fuzzy Dispatches 1 | . . . . . . . . 1 . . . Protomatter Created 412 | . . 118 163 47 . 13 59 . . 12 . Used 283 | . . 20 52 14 33 . . 84 60 20 . Decayed 35 | . . 15 20 . . . . . . . . Highest Spend 51 | . . 14 23 14 33 . . 51 46 20 . Top 5 Hosts by Kills: EX-DEC (-9/Exiles: 27) Y-45 Defender (-9/Materials: 20) NY-MF1(g) (-10/Mines: 14) Y-45 Defender (-9/Materials: 7) S-10 Pest (-10/Mines: 2) Game ------ Seed PhaseGravmagClaymores Manual? 0 Play Time 00:32:17 Cumulative 746.3 hours Start 2022.12.24 @ 01:10:44 End 2022.12.24 @ 02:03:30 Sessions 1 Manual Loads 0 Difficulty Rogue Special Mode Winter2022/Polymind Game No. 658 Rogue 658 Adventurer 0 Explorer 0 Win Type - Total 35 Types 14/5/6/1/1/1/5/1/1 Lore% 94 Gallery% 97 Achievement% 81 Wizard Run 0 Options --------- ASCII 0 Keyboard 0 Movement Numpad Keybinds 1 Fullscreen 2 Font 24/Smallcaps Map View 76x50 Tactical HUD 1 Map Filters NONE Filters NONE Steam 1 RUN: 918985cc-e79d-4e64-a6ac-40ca053b2d0f